Workbook

Sheet 封面
A1: 攀枝花市东区人民法院
A2: 2025年单位预算
A3: 2025-02-21

Sheet 1
E1: 表1
B2: 单位收支总表
B3: 单位：攀枝花市东区人民法院 | E3: 金额单位：元
B4: 收 入 | D4: 支 出
B5: 项 目 | C5: 预算数 | D5: 项 目 | E5: 预算数
B6: 一、一般公共预算拨款收入 | C6: 20,467,608.20 | D6: 一、一般公共服务支出
B7: 二、政府性基金预算拨款收入 | D7: 二、外交支出
B8: 三、国有资本经营预算拨款收入 | D8: 三、国防支出
B9: 四、事业收入 | D9: 四、公共安全支出 | E9: 16,393,837.04
B10: 五、事业单位经营收入 | D10: 五、教育支出
B11: 六、其他收入 | D11: 六、科学技术支出
D12: 七、文化旅游体育与传媒支出
D13: 八、社会保障和就业支出 | E13: 1,684,957.40
D14: 九、社会保险基金支出
D15: 十、卫生健康支出 | E15: 1,056,607.17
D16: 十一、节能环保支出
D17: 十二、城乡社区支出
D18: 十三、农林水支出
D19: 十四、交通运输支出
D20: 十五、资源勘探工业信息等支出
D21: 十六、商业服务业等支出
D22: 十七、金融支出
D23: 十八、援助其他地区支出
D24: 十九、自然资源海洋气象等支出
D25: 二十、住房保障支出 | E25: 1,332,206.59
D26: 二十一、粮油物资储备支出
D27: 二十二、国有资本经营预算支出
D28: 二十三、灾害防治及应急管理支出
D29: 二十四、预备费
D30: 二十五、其他支出
D31: 二十六、转移性支出
D32: 二十七、债务还本支出
D33: 二十八、债务付息支出
D34: 二十九、债务发行费用支出
D35: 三十、抗疫特别国债安排的支出
B36: 本 年 收 入 合 计 | D36: 本 年 支 出 合 计
B37: 七、用事业基金弥补收支差额 | D37: 三十一、事业单位结余分配
B38: 八、上年结转 | D38: 其中：转入事业基金
D39: 三十二、结转下年
B40: 收 入 总 计 | C40: 20,467,608.20 | D40: 支 出 总 计 | E40: 20,467,608.20

Sheet 1-1
N1: 表1-1
B2: 单位收入总表
B3: 单位：攀枝花市东区人民法院 | N3: 金额单位：元
B4: 项 目 | D4: 合计 | E4: 上年结转 | F4: 一般公共预算 拨款收入 | G4: 政府性基金预算拨款收入 | H4: 国有资本经营 预算拨款收入 | I4: 事业收入 | J4: 事业单位经营 收入 | K4: 其他收入 | L4: 上级补助收入 | M4: 附属单位上缴 收入 | N4: 用事业基金弥补收支差额
B5: 单位代码 | C5: 单位名称（科目）
C7: 合 计
B8: 144001 | C8: 攀枝花市东区人民法院 | D8: 20,467,608.20 | F8: 20,467,608.20

Sheet 1-2
K1: 表1-2
B2: 单位支出总表
B3: 单位：攀枝花市东区人民法院 | K3: 金额单位：元
B4: 项 目 | G4: 合计 | H4: 基本支出 | I4: 项目支出 | J4: 上缴上级支出 | K4: 对附属单位补助支出
B5: 科目编码 | E5: 单位代码 | F5: 单位名称（科目）
B6: 类 | C6: 款 | D6: 项
F7: 合 计 | G7: =H7+I7 -> 20,467,608.20 | H7: =H8+H13+H16+H20 -> 17,087,608.20 | I7: =I8+I13+I16+I20 -> 3,380,000.00
B8: 204 | E8: 144001 | F8: 公共安全支出 | G8: =H8+I8 -> 16,393,837.04 | H8: =H9 -> 13,013,837.04 | I8: =I9 -> 3,380,000.00
B9: 204 | C9: 05 | E9: 144001 | F9: 法院 | G9: =H9+I9 -> 16,393,837.04 | H9: =H10+H11+H12 -> 13,013,837.04 | I9: =I10+I11+I12 -> 3,380,000.00
B10: 204 | C10: 05 | D10: 01 | E10: 144001 | F10: 行政运行 | G10: 13,013,837.04 | H10: 13,013,837.04
B11: 204 | C11: 05 | D11: 04 | E11: 144001 | F11: 案件审判 | G11: 710,000.00 | I11: 710,000.00
B12: 204 | C12: 05 | D12: 99 | E12: 144001 | F12: 其他法院支出 | G12: 2,670,000.00 | I12: 2,670,000.00
B13: 208 | E13: 144001 | F13: 社会保障和就业支出 | G13: 1,684,957.40 | H13: =H14 -> 1,684,957.40
B14: 208 | C14: 05 | E14: 144001 | F14: 行政事业单位养老支出 | G14: 1,684,957.40 | H14: =H15 -> 1,684,957.40
B15: 208 | C15: 05 | D15: 05 | E15: 144001 | F15: 机关事业单位基本养老保险缴费支出 | G15: 1,684,957.40 | H15: 1,684,957.40
B16: 210 | E16: 144001 | F16: 卫生健康支出 | G16: 1,056,607.17 | H16: =H17 -> 1,056,607.17
B17: 210 | C17: 11 | E17: 144001 | F17: 行政事业单位医疗 | G17: 1,056,607.17 | H17: =H18+H19 -> 1,056,607.17
B18: 210 | C18: 11 | D18: 01 | E18: 144001 | F18: 行政单位医疗 | G18: 855,502.90 | H18: 855,502.90
B19: 210 | C19: 11 | D19: 03 | E19: 144001 | F19: 公务员医疗补助 | G19: 201,104.27 | H19: 201,104.27
B20: 221 | E20: 144001 | F20: 住房保障支出 | G20: 1,332,206.59 | H20: =H21 -> 1,332,206.59
B21: 221 | C21: 02 | E21: 144001 | F21: 住房改革支出 | G21: 1,332,206.59 | H21: =H22 -> 1,332,206.59
B22: 221 | C22: 02 | D22: 01 | E22: 144001 | F22: 住房公积金 | G22: 1,332,206.59 | H22: 1,332,206.59

Sheet 2
H1: 表2
B2: 财政拨款收支预算总表
B3: 单位：攀枝花市东区人民法院 | H3: 金额单位：元
B4: 收 入 | D4: 支 出
B5: 项 目 | C5: 预算数 | D5: 项 目 | E5: 合计 | F5: 一般公共预算 | G5: 政府性基金预算 | H5: 国有资本经营预算
B6: 一、本年收入 | C6: =C7 -> 20,467,608.20 | D6: 一、本年支出 | E6: =SUM(E7:E34) -> 20,467,608.20 | F6: =E6 -> 20,467,608.20
B7: 一般公共预算拨款收入 | C7: 20,467,608.20 | D7: 一般公共服务支出
B8: 政府性基金预算拨款收入 | D8: 外交支出
B9: 国有资本经营预算拨款收入 | D9: 国防支出
B10: 一、上年结转 | D10: 公共安全支出 | E10: 16,393,837.04 | F10: =E10 -> 16,393,837.04
B11: 一般公共预算拨款收入 | D11: 教育支出
B12: 政府性基金预算拨款收入 | D12: 科学技术支出
B13: 国有资本经营预算拨款收入 | D13: 文化旅游体育与传媒支出
D14: 社会保障和就业支出 | E14: 1,684,957.40 | F14: =E14 -> 1,684,957.40
D15: 社会保险基金支出
D16: 卫生健康支出 | E16: 1,056,607.17 | F16: =E16 -> 1,056,607.17
D17: 节能环保支出
D18: 城乡社区支出
D19: 农林水支出
D20: 交通运输支出
D21: 资源勘探工业信息等支出
D22: 商业服务业等支出
D23: 金融支出
D24: 援助其他地区支出
D25: 自然资源海洋气象等支出
D26: 住房保障支出 | E26: 1,332,206.59 | F26: =E26 -> 1,332,206.59
D27: 粮油物资储备支出
D28: 国有资本经营预算支出
D29: 灾害防治及应急管理支出
D30: 其他支出
D31: 债务还本支出
D32: 债务付息支出
D33: 债务发行费用支出
D34: 抗疫特别国债安排的支出

Sheet 2-1
AM1: 表2-1
B2: 财政拨款支出预算表（部门经济分类科目）
B3: 单位：攀枝花市东区人民法院 | AL3: 金额单位：元
B4: 项 目 | F4: 总计 | G4: 市级当年财政拨款安排 | Q4: 上级提前通知专项转移支付等 | AA4: 上年结转安排
B5: 科目编码 | D5: 单位代码 | E5: 单位名称（科目） | G5: 合计 | H5: 一般公共预算拨款 | K5: 政府性基金安排 | N5: 国有资本经营预算安排 | Q5: 合计 | R5: 一般公共预算拨款 | U5: 政府性基金安排 | X5: 国有资本经营预算安排 | AA5: 合计 | AB5: 一般公共预算拨款 | AE5: 政府性基金安排 | AH5: 国有资本经营预算安排 | AK5: 上年应返还额度结转
B6: 类 | C6: 款 | H6: 小计 | I6: 基本支出 | J6: 项目支出 | K6: 小计 | L6: 基本支出 | M6: 项目支出 | N6: 小计 | O6: 基本 支出 | P6: 项目 支出 | R6: 小计 | S6: 基本支出 | T6: 项目支出 | U6: 小计 | V6: 基本支出 | W6: 项目支出 | X6: 小计 | Y6: 基本 支出 | Z6: 项目 支出 | AB6: 小计 | AC6: 基本支出 | AD6: 项目支出 | AE6: 小计 | AF6: 基本支出 | AG6: 项目支出 | AH6: 小计 | AI6: 基本 支出 | AJ6: 项目 支出 | AK6: 小计 | AL6: 基本 支出 | AM6: 项目 支出
E7: 合 计 | F7: =G7 -> 20,467,608.20 | G7: =H7 -> 20,467,608.20 | H7: =I7+J7 -> 20,467,608.20 | I7: =I8+I18+I36 -> 17,087,608.20 | J7: =J8+J18+J36 -> 3,380,000.00
B8: 301 | D8: 144001 | E8: 工资福利支出 | F8: =SUM(F9:F17) -> 14,613,891.49 | G8: =H8 -> 14,613,891.49 | H8: =I8+J8 -> 14,613,891.49 | I8: =SUM(I9:I17) -> 14,613,891.49
B9: 301 | C9: 01 | D9: 144001 | E9: 基本工资 | F9: =G9 -> 3,490,596.00 | G9: =H9 -> 3,490,596.00 | H9: =I9+J9 -> 3,490,596.00 | I9: 3,490,596.00
B10: 301 | C10: 02 | D10: 144001 | E10: 津贴补贴 | F10: =G10 -> 4,495,217.76 | G10: 4,495,217.76 | H10: 4,495,217.76 | I10: 4,495,217.76
B11: 301 | C11: 03 | D11: 144001 | E11: 奖金 | F11: 258,618.00 | G11: 258,618.00 | H11: 258,618.00 | I11: 258,618.00
B12: 301 | C12: 08 | D12: 144001 | E12: 机关事业单位基本养老保险缴费 | F12: 1,684,957.40 | G12: 1,684,957.40 | H12: 1,684,957.40 | I12: 1,684,957.40
B13: 301 | C13: 10 | D13: 144001 | E13: 职工基本医疗保险缴费 | F13: 855,502.90 | G13: 855,502.90 | H13: 855,502.90 | I13: 855,502.90
B14: 301 | C14: 11 | D14: 144001 | E14: 公务员医疗补助缴费 | F14: 201,104.27 | G14: 201,104.27 | H14: 201,104.27 | I14: 201,104.27
B15: 301 | C15: 12 | D15: 144001 | E15: 其他社会保障缴费 | F15: 23,008.57 | G15: 23,008.57 | H15: 23,008.57 | I15: 23,008.57
B16: 301 | C16: 13 | D16: 144001 | E16: 住房公积金 | F16: 1,332,206.59 | G16: 1,332,206.59 | H16: 1,332,206.59 | I16: 1,332,206.59
B17: 301 | C17: 99 | D17: 144001 | E17: 其他工资福利支出 | F17: 2,272,680.00 | G17: 2,272,680.00 | H17: 2,272,680.00 | I17: 2,272,680.00
B18: 302 | D18: 144001 | E18: 商品和服务支出 | F18: 5,353,116.71 | G18: 5,353,116.71 | H18: 5,353,116.71 | I18: =SUM(I19:I35) -> 2,473,116.71 | J18: =SUM(J19:J35) -> 2,880,000.00
B19: 302 | C19: 01 | D19: 144001 | E19: 办公费 | F19: 336,000.00 | G19: 336,000.00 | H19: 336,000.00 | I19: 180,000.00 | J19: 156,000.00
B20: 302 | C20: 05 | D20: 144001 | E20: 水费 | F20: 150,000.00 | G20: 150,000.00 | H20: 150,000.00 | I20: 150,000.00
B21: 302 | C21: 06 | D21: 144001 | E21: 电费 | F21: 360,000.00 | G21: 360,000.00 | H21: 360,000.00 | I21: 360,000.00
B22: 302 | C22: 07 | D22: 144001 | E22: 邮电费 | F22: 110,000.00 | G22: 110,000.00 | H22: 110,000.00 | I22: 110,000.00
B23: 302 | C23: 09 | D23: 144001 | E23: 物业管理费 | F23: 300,000.00 | G23: 300,000.00 | H23: 300,000.00 | J23: 300,000.00
B24: 302 | C24: 11 | D24: 144001 | E24: 差旅费 | F24: 220,000.00 | G24: 220,000.00 | H24: 220,000.00 | I24: 220,000.00
B25: 302 | C25: 13 | D25: 144001 | E25: 维修（护）费 | F25: 250,000.00 | G25: 250,000.00 | H25: 250,000.00 | J25: 250,000.00
B26: 302 | C26: 15 | D26: 144001 | E26: 会议费 | F26: 10,000.00 | G26: 10,000.00 | H26: 10,000.00 | I26: 10,000.00
B27: 302 | C27: 16 | D27: 144001 | E27: 培训费 | F27: 20,000.00 | G27: 20,000.00 | H27: 20,000.00 | I27: 20,000.00
B28: 302 | C28: 17 | D28: 144001 | E28: 公务接待费 | F28: 81,000.00 | G28: 81,000.00 | H28: 81,000.00 | I28: 81,000.00
B29: 302 | C29: 26 | D29: 144001 | E29: 劳务费 | F29: 1,794,000.00 | G29: 1,794,000.00 | H29: 1,794,000.00 | J29: 1,794,000.00
B30: 302 | C30: 27 | D30: 144001 | E30: 委托业务费 | F30: 170,000.00 | G30: 170,000.00 | H30: 170,000.00 | J30: 170,000.00
B31: 302 | C31: 28 | D31: 144001 | E31: 工会经费 | F31: 222,220.55 | G31: 222,220.55 | H31: 222,220.55 | I31: 222,220.55
B32: 302 | C32: 29 | D32: 144001 | E32: 福利费 | F32: 104,717.88 | G32: 104,717.88 | H32: 104,717.88 | I32: 104,717.88
B33: 302 | C33: 31 | D33: 144001 | E33: 公务用车运行维护费 | F33: 198,450.00 | G33: 198,450.00 | H33: 198,450.00 | I33: 198,450.00
B34: 302 | C34: 39 | D34: 144001 | E34: 其他交通费用 | F34: 659,400.00 | G34: 659,400.00 | H34: 659,400.00 | I34: 659,400.00
B35: 302 | C35: 99 | D35: 144001 | E35: 其他商品和服务支出 | F35: 367,328.28 | G35: 367,328.28 | H35: 367,328.28 | I35: 157,328.28 | J35: =190000+20000 -> 210,000.00
B36: 303 | D36: 144001 | E36: 对个人和家庭的补助 | F36: 500,600.00 | G36: 500,600.00 | H36: 500,600.00 | I36: 600.00 | J36: =J37+J38 -> 500,000.00
B37: 303 | C37: 09 | D37: 144001 | E37: 奖励金 | F37: 600.00 | G37: 600.00 | H37: 600.00 | I37: 600.00
B38: 303 | C38: 99 | D38: 144001 | E38: 其他对个人和家庭的补助 | F38: 500,000.00 | G38: 500,000.00 | H38: 500,000.00 | J38: 500,000.00

Sheet 3
G1: 表3
B2: 一般公共预算支出预算表
B3: 单位：攀枝花市东区人民法院 | I3: 金额单位：元
B4: 项 目 | G4: 合计 | H4: 当年财政拨款安排 | I4: 上年结转安排
B5: 科目编码 | E5: 单位代码 | F5: 单位名称（科目）
B6: 类 | C6: 款 | D6: 项
F7: 合 计 | G7: =H7 -> 20,467,608.20 | H7: =H8+H13+H16+H20 -> 20,467,608.20
B8: 204 | E8: 144001 | F8: 公共安全支出 | G8: =H8 -> 16,393,837.04 | H8: =H9 -> 16,393,837.04
B9: 204 | C9: 05 | E9: 144001 | F9: 法院 | G9: 16,393,837.04 | H9: =H10+H11+H12 -> 16,393,837.04
B10: 204 | C10: 05 | D10: 01 | E10: 144001 | F10: 行政运行 | G10: 13,013,837.04 | H10: 13,013,837.04
B11: 204 | C11: 05 | D11: 04 | E11: 144001 | F11: 案件审判 | G11: 710,000.00 | H11: 710,000.00
B12: 204 | C12: 05 | D12: 99 | E12: 144001 | F12: 其他法院支出 | G12: 2,670,000.00 | H12: 2,670,000.00
B13: 208 | E13: 144001 | F13: 社会保障和就业支出 | G13: 1,684,957.40 | H13: =H14 -> 1,684,957.40
B14: 208 | C14: 05 | E14: 144001 | F14: 行政事业单位养老支出 | G14: 1,684,957.40 | H14: =H15 -> 1,684,957.40
B15: 208 | C15: 05 | D15: 05 | E15: 144001 | F15: 机关事业单位基本养老保险缴费支出 | G15: 1,684,957.40 | H15: 1,684,957.40
B16: 210 | E16: 144001 | F16: 卫生健康支出 | G16: 1,056,607.17 | H16: =H17 -> 1,056,607.17
B17: 210 | C17: 11 | E17: 144001 | F17: 行政事业单位医疗 | G17: 1,056,607.17 | H17: =H18+H19 -> 1,056,607.17
B18: 210 | C18: 11 | D18: 01 | E18: 144001 | F18: 行政单位医疗 | G18: 855,502.90 | H18: 855,502.90
B19: 210 | C19: 11 | D19: 03 | E19: 144001 | F19: 公务员医疗补助 | G19: 201,104.27 | H19: 201,104.27
B20: 221 | E20: 144001 | F20: 住房保障支出 | G20: 1,332,206.59 | H20: =H21 -> 1,332,206.59
B21: 221 | C21: 02 | E21: 144001 | F21: 住房改革支出 | G21: 1,332,206.59 | H21: =H22 -> 1,332,206.59
B22: 221 | C22: 02 | D22: 01 | E22: 144001 | F22: 住房公积金 | G22: 1,332,206.59 | H22: 1,332,206.59

Sheet 3-1
H1: 表3-1
B2: 一般公共预算基本支出预算表
B3: 单位：攀枝花市东区人民法院 | H3: 金额单位：元
B4: 项 目 | F4: 基本支出
B5: 科目编码 | D5: 单位代码 | E5: 单位名称（科目） | F5: 合计 | G5: 人员经费 | H5: 公用经费
B6: 类 | C6: 款
E7: 合 计 | F7: =G7+H7 -> 17,087,608.20 | G7: =G8+G19 -> 14,614,491.49 | H7: =H13 -> 2,473,116.71
B8: 501 | D8: 144001 | E8: 工资福利支出 | F8: 14,613,891.49 | G8: =SUM(G9:G12) -> 14,613,891.49
B9: 501 | C9: 01 | D9: 144001 | E9: 工资奖金津补贴 | F9: 8,244,431.76 | G9: 8,244,431.76
B10: 501 | C10: 02 | D10: 144001 | E10: 社会保障缴费 | F10: 2,764,573.14 | G10: 2,764,573.14
B11: 501 | C11: 03 | D11: 144001 | E11: 住房公积金 | F11: 1,332,206.59 | G11: 1,332,206.59
B12: 501 | C12: 99 | D12: 144001 | E12: 其他工资福利支出 | F12: 2,272,680.00 | G12: 2,272,680.00
B13: 502 | D13: 144001 | E13: 商品和服务支出 | F13: 2,473,116.71 | H13: =SUM(H14:H18) -> 2,473,116.71
B14: 502 | C14: 01 | D14: 144001 | E14: 办公经费 | F14: 2,026,338.43 | H14: 2,026,338.43
B15: 502 | C15: 02 | D15: 144001 | E15: 会议费 | F15: 10,000.00 | H15: 10,000.00
B16: 502 | C16: 06 | D16: 144001 | E16: 公务接待费 | F16: 81,000.00 | H16: 81,000.00
B17: 502 | C17: 08 | D17: 144001 | E17: 公务用车运行维护费 | F17: 198,450.00 | H17: 198,450.00
B18: 502 | C18: 99 | D18: 144001 | E18: 其他商品和服务支出 | F18: 157,328.28 | H18: 157,328.28
B19: 509 | D19: 144001 | E19: 对个人和家庭的补助 | F19: 600.00 | G19: 600.00
B20: 509 | C20: 01 | D20: 144001 | E20: 社会福利和救助 | F20: 600.00 | G20: 600.00

Sheet 3-2
G1: 表3-2
B2: 一般公共预算项目支出预算表
B3: 单位：攀枝花市东区人民法院 | G3: 金额单位：元
B4: 科目编码 | E4: 单位代码 | F4: 单位名称（科目） | G4: 金额
B5: 类 | C5: 款 | D5: 项
F6: 合 计 | G6: 3,380,000.00
B7: 204 | E7: 144001 | F7: 公共安全支出 | G7: 3,380,000.00
B8: 204 | C8: 05 | E8: 144001 | F8: 法院 | G8: 3,380,000.00
B9: 204 | C9: 05 | D9: 04 | E9: 144001 | F9: 案件审判 | G9: 190,000.00
B10: 204 | C10: 05 | D10: 04 | E10: 144001 | F10: 案件审判 | G10: 500,000.00
B11: 204 | C11: 05 | D11: 04 | E11: 144001 | F11: 案件审判 | G11: 20,000.00
B12: 204 | C12: 05 | D12: 99 | E12: 144001 | F12: 其他法院支出 | G12: 2,500,000.00
B13: 204 | C13: 05 | D13: 99 | E13: 144001 | F13: 其他法院支出 | G13: 170,000.00

Sheet 3-3
I1: 表3-3
B2: 一般公共预算“三公”经费支出预算表
B3: 单位：攀枝花市东区人民法院 | I3: 金额单位：元
B4: 单位编码 | C4: 单位名称（科目） | D4: 当年财政拨款预算安排
D5: 合计 | E5: 因公出国（境） 费用 | F5: 公务用车购置及运行费 | I5: 公务接待费
F6: 小计 | G6: 公务用车购置费 | H6: 公务用车运行费
C7: 合 计 | D7: =E7+F7+I7 -> 279,450.00 | E7: 0.00 | F7: =G7+H7 -> 198,450.00 | H7: 198,450.00 | I7: 81,000.00
B8: 144001 | C8: 攀枝花市东区人民法院 | D8: =E8+F8+I8 -> 279,450.00 | E8: 0.00 | F8: =G8+H8 -> 198,450.00 | H8: 198,450.00 | I8: 81,000.00

Sheet 4
I1: 表4
B2: 政府性基金预算支出预算表
B3: 单位：攀枝花市东区人民法院 | I3: 金额单位：元
B4: 项 目 | G4: 本年政府性基金预算支出
B5: 科目编码 | E5: 单位代码 | F5: 单位名称（科目） | G5: 合计 | H5: 基本支出 | I5: 项目支出
B6: 类 | C6: 款 | D6: 项
F7: 合 计
B18: 此表无数据

Sheet 4-1
I1: 表4-1
B2: 政府性基金预算“三公”经费支出预算表
B3: 单位：攀枝花市东区人民法院 | I3: 金额单位：元
B4: 单位编码 | C4: 单位名称（科目） | D4: 当年财政拨款预算安排
D5: 合计 | E5: 因公出国（境） 费用 | F5: 公务用车购置及运行费 | I5: 公务接待费
F6: 小计 | G6: 公务用车购置费 | H6: 公务用车运行费
C7: 合 计
B18: 此表无数据

Sheet 5
I1: 表5
B2: 国有资本经营预算支出预算表
B3: 单位：攀枝花市东区人民法院 | I3: 金额单位：元
B4: 项 目 | G4: 本年国有资本经营预算支出
B5: 科目编码 | E5: 单位代码 | F5: 单位名称（科目） | G5: 合计 | H5: 基本支出 | I5: 项目支出
B6: 类 | C6: 款 | D6: 项
F7: 合 计
B18: 此表无数据

Sheet 6-1
J1: 表6-1
B2: 单位预算项目绩效目标表
B3: (2025年度)
B4: 项目名称 | C4: 办案经费
B5: 单位（单位） | C5: 攀枝花市东区人民法院
B6: 项目资金 （万元） | C6: 年度资金总额 | F6: 250
C7: 财政拨款 | F7: 250
C8: 其他资金
B9: 总体目标 | C9: 该项目经费主要用于诉讼服务大厅水电费、宣传资料印制，审判大楼零星维修，诉讼服务大厅、法庭、办公室空调、电子显示屏、自助设备等维修维护支出，确保我院审判大楼的正常运转和诉讼、庭审业务的正常开展。聘请23名保安协助法警开展安检、庭审、大楼安保工作；聘请23名书记员，协助法官开展审判业务，提高我院审判质效；将我院大楼清洁、电梯维保、花木维护交由专业物业公司管理，总体而言是为了确保审判大楼的清洁、安全，为当事人及法官办案提供舒适安全有序的办案办公环境，从而提高我院审判质效。
B11: 绩效指标 | C11: 一级指标 | D11: 二级指标 | E11: 三级指标 | G11: 指标值（包含数字及文字描述）
C12: 项目完成 | D12: 数量指标 | E12: 在岗保安人数 | G12: 23人
E13: 在岗劳务派遣书记员人数 | G13: 23人
E14: 案件受理数 | G14: ≧8500件
D15: 质量指标 | E15: 书记员工作能力 | G15: 适应法院工作环境，胜任法官安排的各项工作
E16: 工作期间在岗率 | G16: 100%
E17: 办公设备、庭审设备正常运转率 | G17: 100%
D18: 时效指标 | E18: 设备报修时间 | G18: ≦2小时
D19: 成本指标 | E19: 保安劳务费 | G19: 34800元/人/年
E20: 书记员劳务费 | G20: 43200元/人/年
E21: 物业管理费 | G21: 约300000元/年
E22: 办公费 | G22: 约156000元/年
E23: 维修（护）费 | G23: 约250000元/年
C24: 项目效益 | D24: 社会效益指标 | E24: 保证审判大楼的日常正常运行，确保审判业务的正常开展，各部门保证本部门职能的高度履行。 | G24: 较以往有所提升
E25: 确保诉讼服务大厅正常运行，畅通诉讼服务渠道，更好为人民提供诉讼服务。 | G25: 较以往有所提升
C26: 满意度指标 | D26: 服务对象满意度指标 | E26: 当事人满意度 | G26: ≥95%
E27: 法官满意度 | G27: ≥95%

Sheet 6-2
J1: 表6-2
B2: 单位预算项目绩效目标表
B3: (2025年度)
B4: 项目名称 | C4: 信息系统维护费
B5: 单位（单位） | C5: 攀枝花市东区人民法院
B6: 项目资金 （万元） | C6: 年度资金总额 | F6: 17
C7: 财政拨款 | F7: 17
C8: 其他资金
B9: 总体目标 | C9: 我院拟在下年开展以下信息化建设项目：一是保证15个科技法院庭审语音识别系统在发生故障后及时维修，同时开展日常定期维护，确保将庭审发言及时转化成文字，准确记录庭审各方当事人发言，提高记录准确性、完整性。二是档案数字化建设，将我院档案进行扫描归档保存，规范档案管理。三是对原有各信息系统进行维护。通过系列信息化建设，缓解我院案多人少矛盾，进一步提高审判质效。
B11: 绩效指标 | C11: 一级指标 | D11: 二级指标 | E11: 三级指标 | G11: 指标值（包含数字及文字描述）
C12: 项目完成 | D12: 数量指标 | E12: 科技法庭安装信息化设备数量 | G12: ≥8500件
E13: 档案数字化扫描页数 | G13: ≥90万页
D14: 质量指标 | E14: 语音识别系统能正常投入使用 | G14: 100%
E15: 扫描卷宗清晰可见 | G15: 100%
E16: 各系统正常运行 | G16: 100%
E17: 庭审记录的准确性、完整性 | G17: 100%
D18: 时效指标 | E18: 档案数字化加工时间 | G18: ≤30天
E19: 设备、系统故障报修时间 | G19: ≤2小时
D20: 成本指标 | E20: 各信息系统维护费 | G20: 10万元
E21: 档案数字化加工费 | G21: 0.3元/张
C22: 项目效益 | D22: 社会效益指标 | E22: 保证信息系统正常运行、畅通诉讼服务渠道 | G22: 较以往年度有所提升
E23: 以信息化手段缓解案多人少矛盾、提升审判质效 | G23: 较以往年度有所提升
C24: 满意度指标 | D24: 服务对象满意度指标 | E24: 当事人满意度 | G24: ≥95%
E25: 法官满意度 | G25: ≥95%

Sheet 6-3
G1: 表6-3
A2: 单位预算项目支出绩效目标表
A4: (2025年度)
A5: 项目名称 | B5: 大调解经费
A6: 单位（单位） | B6: 攀枝花市东区人民法院
A7: 项目资金 （万元） | B7: 年度资金总额 | E7: 2.00
B8: 财政拨款 | E8: 2.00
B9: 其他资金
A10: 年度目标 | B10: 通过聘请有专业法律知识和从业经验的退休法官担任诉前调解员，从而达到溯源治理、多元化化解矛盾纠纷的目的，且从一定程度上缓解法官工作压力，减轻法院案件囤积压力，更好的提高审判质效。
A11: 绩效指标 | B11: 一级指标 | C11: 二级指标 | D11: 三级指标 | F11: 指标值（包含数字及文字描述）
B12: 产出指标 | C12: 数量指标 | D12: 调解员数量 | F12: 2名
D13: 人均调解案件数 | F13: ≥100件
C14: 质量指标 | D14: 调解案件成功率 | F14: ≥85%
D15: 调解员在岗率 | F15: 100%
C16: 时效指标 | D16: 对满足调解的案件及时调解 | F16: 30日内完成
B17: 成本指标 | C17: 经济成本指标 | D17: 调解成本 | F17: 150-300元/件
B18: 效益指标 | C18: 社会效益指标 | D18: 多元化解矛盾纠纷，通过诉前调解，减少不必要的案件受审，提高案件审判质效。 | F18: 较以往有所提升
D19: 有利于法律宣传，提高公民法律意识。 | F19: 较以往有所提升
C20: 可持续影响指标 | D20: 推进依法治国进程 | F20: 较以往有所提升
B21: 满意度指标 | C21: 服务对象满意度指标 | D21: 当事人满意度 | F21: ≥95%

Sheet 6-4
G1: 表6-4
A2: 单位预算项目支出绩效目标表
A4: (2025年度)
A5: 项目名称 | B5: 人民陪审员经费
A6: 单位（单位） | B6: 攀枝花市东区人民法院
A7: 项目资金 （万元） | B7: 年度资金总额 | E7: 19.00
B8: 财政拨款 | E8: 19.00
B9: 其他资金
A10: 年度目标 | B10: 通过聘请有专业法律知识和从业经验的退休法官担任诉前调解员，从而达到溯源治理、多元化化解矛盾纠纷的目的，且从一定程度上缓解法官工作压力，减轻法院案件囤积压力，更好的提高审判质效。
A11: 绩效指标 | B11: 一级指标 | C11: 二级指标 | D11: 三级指标 | F11: 指标值（包含数字及文字描述）
B12: 产出指标 | C12: 数量指标 | D12: 人民陪审员数量 | F12: 108名
D13: 参与陪审案件总数 | F13: ≥1500件
C14: 质量指标 | D14: 参与案件结案率 | F14: ≥95%
D15: 全程参与庭审 | F15: 100%
B16: 成本指标 | C16: 经济成本指标 | D16: 案件补助费 | F16: 100元/件
B17: 效益指标 | C17: 社会效益指标 | D17: 有利于司法公开，进一步实现司法公正。 | F17: 较以往有所提升
D18: 有利于法律宣传，提高公民法律意识。 | F18: 较以往有所提升
C19: 可持续影响指标 | D19: 推进依法治国进程 | F19: 较以往有所提升
B20: 满意度指标 | C20: 服务对象满意度指标 | D20: 当事人满意度 | F20: ≥95%

Sheet 6-5
G1: 表6-5
A2: 单位预算项目支出绩效目标表
A4: (2025年度)
A5: 项目名称 | B5: 司法救助金
A6: 单位（单位） | B6: 攀枝花市东区人民法院
A7: 项目资金 （万元） | B7: 年度资金总额 | E7: 50.00
B8: 财政拨款 | E8: 50.00
B9: 其他资金
A10: 年度目标 | B10: 用于审判、执行中困难群众的司法救助工作，促进社会矛盾化解、维护社会稳定和谐。
A11: 绩效指标 | B11: 一级指标 | C11: 二级指标 | D11: 三级指标 | F11: 指标值（包含数字及文字描述）
B12: 产出指标 | C12: 数量指标 | D12: 救助涉案当事人 | F12: ≥10人
D13: 完成符合条件的司法救助案件 | F13: ≥10件
C14: 质量指标 | D14: 司法救助案件结案率 | F14: 100%
D15: 受救助对象息诉罢访率 | F15: 100%
C16: 时效指标 | D16: 对满足条件的案件及时救助 | F16: 60日内完成
B17: 成本指标 | C17: 经济成本指标 | D17: 信访案件救助金 | F17: 15万元
D18: 刑事案件救助金 | F18: 5万元
D19: 执行案件救助金 | F19: 25万元
D20: 其他案件救助金 | F20: 5万元
B21: 效益指标 | C21: 社会效益指标 | D21: 化解社会矛盾、维护社会稳定 | F21: 有所提升
C22: 可持续影响指标 | D22: 推进依法治国进程 | F22: 有所提升
B23: 满意度指标 | C23: 服务对象满意度指标 | D23: 当事人满意度 | F23: ≥95%

Sheet 7
G1: 表7
A2: 单位整体支出绩效目标表
A3: （2025年度）
A4: 单位名称 | D4: 攀枝花市东区人民法院
A5: 年度 主要 任务 | B5: 任务名称 | D5: 主要内容
B6: 保障审判、庭审业务每日正常开展 | D6: 在提升审判质效方面，聘请23名保安协助法警开展安检、庭审、大楼安保工作；聘请23名书记员，协助法官开展审判业务。确保我院审判大楼的正常运转和诉讼、庭审业务的正常开展。
B7: 推动司法救助工作正常进行 | D7: 保证审判、执行中困难群众的司法救助工作正常开展，促进社会矛盾化解、维护社会稳定和谐。
B8: 保证人民陪审员参审率，进一步促进司法公开 | D8: 按照上级要求我院共选用108名人民陪审员，人民陪审员参与案件审理，更有利于司法公开，进一步体现司法公正。
B9: 保证我院内科技法庭正常工作，进一步提高审判质效 | D9: 保证15个科技法院庭审语音识别系统在发生故障后及时维修，同时开展日常定期维护，确保将庭审发言及时转化成文字，准确记录庭审各方当事人发言，提高记录准确性、完整性。将我院档案进行扫描归档保存，规范档案管理。对原有各信息系统进行维护。
B10: 聘用调解员，做好诉前调解工作，缓解法官办案压力 | D10: 通过聘请有专业法律知识和从业经验的退休法官担任诉前调解员，从而达到溯源治理、多元化化解矛盾纠纷的目的，且从一定程度上缓解法官工作压力，减轻法院案件囤积压力，更好的提高审判质效。
B11: 年度部门整体支出预算资金（万元） | E11: 资金总额 | F11: 财政拨款 | G11: 其他资金
E12: 2046.76 | F12: 2046.76
A13: 年度 总体 目标 | B13: 2025年是东区抢抓机遇、攻坚突破，加快实现高质量跨越发展的关键之年。区法院将始终坚持以习近平新时代中国特色社会主义思想为指导，全面贯彻党的二十大和二十届一中全会精神，深入贯彻中央、省委、市委、区委决策部署，聚焦市委“一三三三”总体发展战略和区委“一二三五”总体工作思路，紧紧围绕“努力让人民群众在每一个司法案件中感受到公平正义”目标，坚持“政治建院、担当兴院、公信立院、改革强院、严格治院”工作思路，奋力争创案件质效更优、司法能力更强、创新发展更快、队伍素质更高的一流法院，为东区加快建设现代化区域中心城区提供更加优质的司法保障。
A14: 年 度 绩 效 指 标 | B14: 一级指标 | C14: 二级指标 | D14: 三级指标 | F14: 指标值（包含数字及文字描述）
B15: 完 成 指 标 | C15: 数量指标 | D15: 保障职工正常办公秩序人数 | F15: 179人
D16: 受理案件数量 | F16: ≥8500件
D17: 科技法庭安装信息化设备数量 | F17: 15个
D18: 调解员数量 | F18: 2人
D19: 人民陪审员数量 | F19: 108名
D20: 档案数字化扫描页数 | F20: ≥90万页
D21: 当年司法救助人数 | F21: ≥10人
D22: 当年结案数量 | F22: ≥8100件
C23: 质量指标 | D23: 职工办公、生活要求能得到基本满足 | F23: 保证工资按时发放，有必要的办公场所和办公设备
D24: 当年结案率 | F24: ≥95%
D25: 执行案件结案率 | F25: ≥90%
C26: 时效指标 | D26: 对满足司法救助的案件及时救助 | F26: 30日内完成
D27: 审判时效 | F27: ≤60日
C28: 成本指标 | D28: 经费控制 | F28: 2046.76万元
B29: 效益指标 | C29: 社会效益指标 | D29: 严惩犯罪，维护公民权益 | F29: 有所加强
D30: 稳定社会，多元化化解矛盾纠纷 | F30: 有所提升
B31: 满 意 度 指 标 | C31: 满意度指标 | D31: 当事人满意度 | F31: ≥95%
